bitfinex/quotes_ETHUSD_20250331
["timestamp","ask_amount","ask_price","bid_price","bid_amount"]
[1743406287182,5.54923,1802.1,1801.7,11.21119]
[1743406287379,7.39799702,1802.1,1801.7,11.21119]
[1743406287612,9.13739198,1802.0,1801.7,11.21121]
[1743406288117,14.68694198,1802.0,1801.7,11.21121]
[1743406288321,9.13739198,1802.0,1801.7,11.21121]
[1743406288609,3.0,1801.9,1801.8,5.66]
[1743406288781,4.2137362,1801.9,1801.8,5.66]
[1743406289494,3.0,1801.9,1801.8,5.66]
[1743406290016,8.54969,1801.9,1801.8,5.66]
[1743406290578,3.0,1801.9,1801.8,5.66]
[1743406290878,8.54969,1801.9,1801.8,5.66]
[1743406291074,5.55033,1801.7,1801.4,5.55112]
[1743406291307,5.55033,1801.7,1801.5,5.66]
[1743406293413,15.49264198,1801.8,1801.5,5.66]
[1743406293619,17.34190618,1801.8,1801.5,5.66]
[1743406293824,3.58791198,1801.8,1801.5,11.21086]
[1743406294113,8.54974,1801.9,1801.6,11.10102]
[1743406294322,3.0,1801.9,1801.7,5.55026]
[1743406295023,8.1217882,1802.2,1801.9,5.54963]
[1743406295317,3.0,1802.1,1802.0,5.655]
[1743406297192,8.54908,1802.1,1802.0,5.655]
[1743406297398,13.8040788,1802.1,1802.0,5.655]
[1743406298299,5.54978,1801.9,1801.6,5.55057]
[1743406298503,5.54978,1801.9,1801.7,5.643]
[1743406299396,5.54943,1802.0,1801.7,5.643]
[1743406299724,8.2549988,1802.1,1801.7,5.643]
[1743406299925,9.13776198,1801.9,1801.7,5.643]
[1743406300283,9.13775198,1801.9,1801.7,5.643]
[1743406302007,14.68765198,1801.9,1801.7,5.643]
[1743406302201,5.55,1801.8,1801.7,5.643]
[1743406302402,0.8044,1801.8,1801.7,5.643]
[1743406302635,6.3544,1801.8,1801.7,5.643]
[1743406303237,9.13775198,1801.9,1801.7,5.643]
[1743406303441,3.0,1801.9,1801.7,11.19329]
[1743406303649,9.32179,1802.0,1801.7,11.19322]
[1743406304131,9.32179,1802.0,1801.7,11.1932]
[1743406304329,3.7724,1802.0,1801.7,16.74336]
[1743406304531,3.0,1802.0,1801.7,16.74336]
[1743406304722,3.0,1802.0,1801.7,16.74337]
[1743406304926,8.54942,1802.0,1801.7,11.19316]
[1743406305116,9.92986188,1802.0,1801.7,11.19316]
[1743406305440,9.92986188,1802.0,1801.7,16.74338]
[1743406305654,9.92986188,1802.0,1801.7,5.643]
[1743406305817,9.13767198,1801.9,1801.7,5.643]
[1743406306016,11.87279,1801.8,1801.5,5.55079]
[1743406306229,7.0962502,1801.8,1801.6,5.616]
[1743406306432,5.5497,1801.9,1801.6,11.16647]
[1743406306743,16.25178188,1802.0,1801.6,16.71698]
[1743406306934,9.32184,1802.0,1801.7,5.55012]
[1743406307711,5.54982,1801.9,1801.6,11.16652]
[1743406307907,5.55062,1801.6,1801.4,0.7733]
[1743406308114,5.55094,1801.5,1801.2,38.38851]
[1743406308342,6.32302,1801.6,1801.3,5.638]
[1743406308546,5.55101,1801.5,1801.3,5.638]
[1743406308922,8.2191122,1801.6,1801.3,5.638]
[1743406308923,13.7698522,1801.6,1801.3,5.638]
[1743406309660,12.13896198,1801.5,1801.4,5.633]
[1743406310234,6.58791198,1801.5,1801.4,5.633]
[1743406310415,6.58791198,1801.5,1801.3,5.55151]
[1743406310611,12.13885198,1801.5,1801.3,5.63]
[1743406312343,6.58791198,1801.5,1801.3,5.63]
[1743406312826,12.13885198,1801.5,1801.3,5.63]
[1743406313354,3.0,1801.5,1801.3,11.1815]
[1743406313561,3.0,1801.5,1801.3,5.63]
[1743406314059,3.0,1801.5,1801.3,11.18153]
[1743406315316,10.58674342,1801.5,1801.3,5.63]
[1743406315713,13.63172381,1801.5,1801.3,5.63]
[1743406315946,8.59623039,1801.4,1801.2,32.033]
[1743406316146,8.59623039,1801.4,1801.3,5.605]
[1743406316313,3.04498039,1801.4,1801.3,5.605]
[1743406316782,11.59621039,1801.4,1801.2,32.033]
[1743406316950,11.59621039,1801.4,1801.1,5.709]
[1743406316951,8.55185,1801.2,1801.1,5.709]
[1743406317116,11.59683039,1801.2,1801.1,0.1]
[1743406317826,0.7724,1801.2,1801.1,0.1]
[1743406318022,8.55159,1801.3,1801.1,0.1]
[1743406318864,5.55185,1801.2,1801.1,0.1]
[1743406319473,6.962194,1801.2,1801.1,0.1]
[1743406319826,10.56089936,1801.2,1801.1,0.1]
[1743406321152,5.55185,1801.2,1801.1,0.1]
[1743406321765,9.97835536,1801.2,1801.1,0.1]
[1743406322969,9.15055536,1801.2,1801.1,0.1]
[1743406323170,9.97835536,1801.2,1801.1,0.1]
[1743406323746,9.15055536,1801.2,1801.1,0.1]
[1743406323952,6.23843812,1801.2,1801.1,0.1]
[1743406324942,9.83714348,1801.2,1801.1,0.1]
[1743406325275,10.66494348,1801.2,1801.1,0.1]
[1743406325640,19.71493348,1801.2,1801.1,0.1]
[1743406325847,11.10711,1800.7,1800.6,5.637]
[1743406326054,5.55377,1800.6,1800.3,0.8104]
[1743406326274,5.55377,1800.6,1800.2,5.55483]
[1743406326275,5.55405,1800.5,1800.2,0.8104]
[1743406326573,11.10832,1800.5,1800.4,5.637]
[1743406327078,6.37685,1800.5,1800.4,5.637]
[1743406327645,9.15247536,1800.6,1800.4,5.637]
[1743406327840,5.55377,1800.6,1800.4,5.637]
[1743406328146,5.55401,1800.5,1800.4,5.637]
[1743406329775,7.02465854,1800.5,1800.4,5.637]
[1743406330983,5.55401,1800.5,1800.4,5.637]
[1743406331184,6.04999,1800.6,1800.4,11.19116]
[1743406331351,6.04999,1800.6,1800.5,6.30521]
[1743406332275,6.04999,1800.6,1800.5,0.7512]
[1743406332476,6.04999,1800.6,1800.5,6.30521]
[1743406333160,6.04999,1800.6,1800.5,20.80521]
[1743406334093,6.04999,1800.6,1800.5,0.7512]
[1743406334581,6.04999,1800.6,1800.3,6.34218]
[1743406334748,6.04999,1800.6,1800.5,5.621]
[1743406334950,11.60369,1800.6,1800.5,5.621]
[1743406335559,6.04999,1800.6,1800.5,5.621]
[1743406336087,6.34033,1800.7,1800.5,5.621]
[1743406336667,3.0,1801.0,1800.8,5.55308]
[1743406336867,3.0,1801.0,1800.9,5.615]
[1743406337463,3.0,1801.1,1800.9,5.615]
[1743406337787,3.0,1801.1,1800.9,11.16771]
[1743406337985,4.28529348,1801.2,1801.0,0.7877]
[1743406338286,5.97182916,1801.4,1801.0,6.34013]
[1743406338490,9.3384,1801.3,1800.9,11.16767]
[1743406338789,3.0,1801.0,1800.8,0.7877]
[1743406338961,5.55157,1801.3,1800.9,5.631]
[1743406339166,8.55185,1801.2,1800.9,11.18377]
[1743406339677,3.0,1801.3,1800.9,5.631]
[1743406339883,8.55164,1801.3,1801.0,5.55243]
[1743406340460,3.0,1801.3,1801.1,5.55215]
[1743406340775,5.97660546,1801.5,1801.1,5.55215]
[1743406340776,9.14968536,1801.5,1801.1,11.89186]
[1743406340976,5.55066,1801.6,1801.3,5.55154]
[1743406341178,5.55095,1801.5,1801.4,5.638]
[1743406341495,12.14965536,1801.5,1801.4,5.638]
[1743406341788,11.5961157,1801.5,1801.4,5.638]
[1743406342199,7.75984327,1801.5,1801.4,5.638]
[1743406342567,6.04999,1801.7,1801.4,5.638]
[1743406342767,0.7868,1802.0,1801.5,5.55082]
[1743406342967,11.5958957,1801.6,1801.5,5.66]
[1743406343396,6.0451657,1801.6,1801.5,5.66]
[1743406343783,8.55062,1801.6,1801.5,5.66]
[1743406344008,10.39915702,1801.6,1801.5,5.66]
[1743406344212,5.55175,1801.3,1801.2,5.676]
[1743406344410,8.55175,1801.3,1801.2,5.676]
[1743406344910,5.55257,1801.0,1800.6,6.34136]
[1743406345211,12.15040023,1800.9,1800.7,5.683]
[1743406345370,12.15040023,1800.9,1800.6,5.684]
[1743406345586,5.55312,1800.8,1800.6,5.684]
[1743406345996,5.55312,1800.8,1800.6,5.681]
[1743406346200,6.59751023,1800.9,1800.6,11.2346]
[1743406346469,6.59751023,1800.9,1800.6,11.23456]
[1743406346805,12.15039023,1800.9,1800.6,11.23456]
[1743406347116,12.15039023,1800.9,1800.6,5.681]
[1743406347271,17.70342023,1800.9,1800.6,5.681]
[1743406347471,8.44647725,1800.9,1800.6,5.681]
[1743406347996,5.55338,1800.8,1800.6,5.681]
[1743406348195,8.55339,1800.7,1800.2,6.34821]
[1743406348499,5.55442,1800.4,1800.3,5.685]
[1743406349289,5.55404,1800.5,1800.3,5.685]
[1743406350073,3.0,1800.6,1800.3,11.99369]
[1743406350713,3.0,1800.7,1800.3,6.4392]
[1743406351007,8.55339,1800.7,1800.4,5.55416]
[1743406351211,8.55339,1800.7,1800.4,20.05416]
[1743406351378,3.0,1800.7,1800.5,5.55395]
[1743406351585,3.0,1800.7,1800.4,20.05416]
[1743406351787,8.55343,1800.7,1800.4,14.5]
[1743406351990,8.55343,1800.7,1800.4,20.05421]
[1743406352717,3.0,1800.7,1800.4,25.60842]
[1743406352923,3.0,1800.7,1800.5,5.55398]
[1743406354402,5.5537,1800.6,1800.4,14.5]
[1743406354611,5.5537,1800.6,1800.3,17.54827]
[1743406354976,5.5537,1800.6,1800.3,11.99368]
[1743406355175,5.5537,1800.6,1800.2,20.05493]
[1743406355176,5.5537,1800.6,1800.2,5.55493]
[1743406355488,8.55361,1800.7,1800.4,0.7542]
[1743406355674,8.55361,1800.7,1800.4,15.2542]
[1743406355874,8.55361,1800.7,1800.4,20.80842]
[1743406356176,8.55361,1800.7,1800.4,11.86261]
[1743406356371,8.55361,1800.7,1800.1,0.7542]
[1743406356372,5.55488,1800.3,1800.1,0.7542]
[1743406356611,5.55524,1800.1,1800.0,1.0]
[1743406357887,9.96617023,1800.4,1800.0,6.55546]
[1743406358103,3.0,1800.3,1800.1,5.55515]
[1743406358299,3.0,1800.3,1800.2,5.696]
[1743406358498,5.55386,1800.6,1800.3,5.55451]
[1743406358813,3.0,1800.6,1800.4,0.7542]
[1743406359177,14.10771,1800.6,1800.2,12.00511]
[1743406359485,3.0,1800.4,1800.2,6.4502]
[1743406359835,5.55449,1800.4,1800.2,5.696]
[1743406360127,8.55404,1800.5,1800.2,11.25087]
[1743406360291,3.0,1800.5,1800.2,16.80564]
[1743406360487,3.0,1800.5,1800.2,16.80557]
[1743406360721,3.0,1800.5,1800.2,11.25077]
[1743406361030,3.0,1800.5,1800.3,5.55461]
[1743406361176,3.0,1800.6,1800.3,6.30866]
[1743406361379,6.36719,1800.9,1800.5,5.55383]
[1743406361582,6.36719,1800.9,1800.6,5.692]
[1743406361922,8.55339,1800.7,1800.6,5.692]
[1743406365020,8.55339,1800.7,1800.0,1.0]
[1743406365021,3.0,1800.5,1800.0,1.0]
[1743406365225,5.55472,1800.3,1800.2,5.685]
[1743406365422,9.15183023,1800.4,1800.2,5.685]
[1743406366325,12.15155023,1800.5,1800.2,11.23991]
[1743406366527,3.0,1800.5,1800.4,5.55432]
[1743406366822,3.0,1800.5,1800.3,5.5545]
[1743406367024,3.0,1800.5,1800.2,17.61423]
[1743406367228,3.0,1800.5,1800.3,5.55444]
[1743406367427,3.0,1800.5,1800.4,5.55432]
[1743406367598,3.0,1800.5,1800.3,5.55444]
[1743406369394,3.0,1800.5,1800.4,5.55432]
[1743406369594,3.0,1800.5,1800.3,5.55444]
[1743406369798,3.0,1800.5,1800.3,11.10896]
[1743406370000,3.0,1800.5,1800.4,5.55432]
[1743406371918,3.0,1800.5,1800.2,26.55943]
[1743406372121,8.55401,1800.5,1800.2,32.11422]
[1743406372319,3.0,1800.5,1800.3,5.55459]
[1743406372519,3.0,1800.5,1800.2,26.55929]
[1743406372520,5.55319,1800.8,1800.4,6.37355]
[1743406372726,5.55319,1800.8,1800.5,5.5539]
[1743406372727,3.0,1800.7,1800.5,5.5539]
[1743406373034,3.0,1800.8,1800.6,5.661]
[1743406373404,10.40170023,1801.1,1800.6,5.661]
[1743406373614,2.67776744,1801.5,1800.9,5.5525]
[1743406373615,5.55161,1801.3,1800.9,5.5525]
[1743406373813,6.6619,1801.3,1801.0,6.4875]
[1743406374133,8.55194,1801.2,1801.0,6.4875]
[1743406374432,14.10401,1801.2,1801.0,6.4875]
[1743406374731,9.90387023,1801.1,1801.0,5.668]
[1743406375669,9.14967023,1801.1,1801.0,5.668]
[1743406375836,10.91983125,1801.1,1801.0,5.668]
[1743406376142,11.67403125,1801.1,1801.0,5.668]
[1743406376445,3.0,1801.0,1800.7,11.22109]
[1743406376742,3.0,1801.2,1800.7,11.22135]
[1743406376973,9.30682,1801.0,1800.7,5.668]
[1743406377258,3.0,1801.0,1800.7,11.22123]
[1743406377610,3.0,1801.0,1800.7,16.77447]
[1743406377810,3.0,1801.0,1800.8,5.55308]
[1743406378242,3.855218,1801.0,1800.7,11.22129]
[1743406378405,9.407728,1801.0,1800.7,11.22129]
[1743406378935,5.55282,1800.9,1800.7,5.668]
[1743406379235,9.407728,1801.0,1800.8,5.676]
[1743406379857,3.0,1801.0,1800.8,5.676]
[1743406380244,3.0,1801.0,1800.8,11.22895]
[1743406380443,3.0,1801.0,1800.9,6.35577]
[1743406380634,3.59751023,1801.4,1800.9,0.803]
[1743406380840,3.59751023,1801.4,1801.1,5.55213]
[1743406381076,0.35975102,1801.3,1801.2,5.681]
[1743406381271,8.91129102,1801.3,1801.2,5.681]
[1743406381764,0.7735,1801.2,1800.8,5.683]
[1743406381945,5.55257,1801.0,1800.8,5.683]
[1743406382146,11.88026,1800.8,1800.7,5.683]
[1743406382374,16.42803702,1800.8,1800.7,5.683]
[1743406382942,3.0,1800.8,1800.7,5.683]
[1743406383293,8.55308,1800.8,1800.7,5.683]
[1743406384063,12.15059023,1800.8,1800.7,5.683]
[1743406384575,5.55342,1800.7,1800.4,0.803]
[1743406384885,5.55416,1800.5,1800.2,32.862]
[1743406385047,5.55416,1800.5,1800.3,5.684]
[1743406385248,5.55442,1800.4,1800.3,5.684]
[1743406385443,5.55442,1800.4,1800.2,32.059]
[1743406385677,5.55485,1800.3,1800.0,1.803]
[1743406385876,8.55524,1800.1,1800.0,1.0]
[1743406387361,14.60523,1800.1,1800.0,1.0]
[1743406388290,18.97624023,1800.1,1800.0,1e-05]
[1743406388459,9.33029,1799.6,1799.5,0.005]
[1743406388660,13.42100023,1799.6,1799.0,0.803]
[1743406388862,5.55864,1799.0,1798.9,5.685]
[1743406389068,14.1175,1799.0,1798.9,5.688]
[1743406389286,12.15615023,1799.0,1798.9,5.688]
[1743406389961,6.59751023,1799.0,1798.8,5.694]
[1743406390303,13.92761525,1799.0,1798.8,5.696]
[1743406390520,8.36895525,1799.0,1798.8,5.696]
[1743406391466,13.92759525,1799.0,1798.8,5.696]
[1743406392216,3.0,1798.9,1798.8,11.25511]
[1743406392399,3.0,1799.1,1798.8,11.25511]
[1743406392600,8.55835,1799.1,1798.8,5.696]
[1743406392921,3.0,1798.9,1798.8,5.696]
[1743406393498,8.55895,1798.9,1798.6,32.856]
[1743406393699,10.33046202,1798.9,1798.7,5.7]
[1743406394338,1.77151202,1798.9,1798.7,5.7]
[1743406394630,3.0,1798.9,1798.7,5.7]
[1743406394811,3.0,1798.9,1798.7,11.25953]
[1743406395433,3.0,1798.9,1798.7,5.7]
[1743406395623,8.55896,1798.9,1798.7,5.7]
[1743406395949,3.0,1798.9,1798.7,5.7]
[1743406396123,0.7735,1799.2,1798.7,5.7]
[1743406396124,11.11218,1799.9,1799.5,5.55689]
[1743406396320,5.55617,1799.8,1799.6,5.789]
[1743406396525,6.59751023,1799.7,1799.6,5.789]
[1743406396735,13.92500225,1799.7,1799.6,20.289]
[1743406397041,10.92500225,1799.7,1799.6,5.789]
[1743406397247,11.74710225,1799.7,1799.6,5.789]
[1743406397541,14.74710225,1799.7,1799.6,5.789]
[1743406398102,9.19062225,1799.7,1799.6,5.789]
[1743406398306,8.36852225,1799.7,1799.6,5.789]
[1743406398597,6.59751023,1799.7,1799.6,5.789]
[1743406399049,12.15399023,1799.7,1799.6,5.789]
[1743406400339,8.55681,1799.6,1799.2,6.32465]
[1743406400729,3.0,1799.4,1799.3,5.784]
[1743406401317,8.5574,1799.4,1799.0,6.32526]
[1743406401640,14.11633,1799.2,1798.8,6.32603]
[1743406401802,8.55836,1799.1,1798.9,5.78]
[1743406402008,3.0,1799.1,1798.9,11.3389]
[1743406402211,5.55897,1798.9,1798.6,38.37955]
[1743406402447,14.11785,1799.0,1798.7,5.782]
[1743406402656,5.55896,1798.9,1798.7,5.782]
[1743406403016,8.55891,1799.0,1798.7,11.34155]
[1743406403414,14.11772,1799.0,1798.7,5.782]
[1743406403610,8.55881,1799.0,1798.7,5.782]
[1743406403911,14.11763,1799.0,1798.7,5.782]
[1743406404342,8.55881,1799.0,1798.7,5.782]
[1743406404645,14.1177,1799.0,1798.7,5.782]
[1743406404945,8.55881,1799.0,1798.7,5.782]
[1743406405148,5.55912,1798.9,1798.7,5.782]
[1743406406053,0.8221,1798.7,1798.2,5.56608]
[1743406406345,12.15831023,1798.3,1798.2,0.005]
[1743406406931,12.98041023,1798.3,1798.2,0.005]
[1743406408125,14.83450925,1798.3,1798.2,0.005]
[1743406408658,8.5608,1798.3,1798.2,0.005]
[1743406409329,14.61079,1798.3,1798.2,0.005]
[1743406410628,15.41659,1798.3,1798.2,0.005]
[1743406411146,15.83475155,1798.3,1798.2,0.005]
[1743406411857,15.41659,1798.3,1798.2,0.005]
[1743406412060,17.87405802,1798.3,1798.2,0.005]
[1743406412534,9.04999,1798.3,1798.2,0.005]
[1743406412931,6.04999,1798.6,1798.2,5.776]
[1743406413132,5.5605,1798.4,1798.2,5.776]
[1743406413371,3.0,1798.3,1798.2,5.776]
[1743406413529,3.0,1798.5,1798.2,11.33711]
[1743406413724,6.04999,1798.6,1798.2,5.776]
[1743406413957,11.60986,1798.6,1798.5,0.7994]
[1743406414161,8.56032,1798.5,1798.2,6.5754]
[1743406414364,3.0,1798.5,1798.2,12.1364]
[1743406414535,3.0,1798.5,1798.3,5.56078]
[1743406415132,3.0,1798.5,1798.4,5.56049]
[1743406415467,3.0,1798.5,1798.3,5.56078]
[1743406415630,3.0,1798.5,1798.3,5.56068]
[1743406416067,3.0,1798.5,1798.3,11.12134]
[1743406416634,3.0,1798.4,1798.2,6.36547]
[1743406416838,3.0,1798.4,1798.3,5.779]
[1743406417673,3.0,1798.4,1798.3,5.78]
[1743406418345,8.56049,1798.4,1798.3,5.78]
[1743406418775,3.0,1798.4,1798.3,5.78]
[1743406419477,3.0,1798.4,1798.3,11.3408]
[1743406420564,9.15744023,1798.6,1798.4,5.56037]
[1743406420565,3.0,1798.6,1798.4,5.56037]
[1743406420757,3.0,1798.6,1798.3,11.3408]
[1743406420961,8.56002,1798.6,1798.3,11.3408]
[1743406421473,14.12009,1798.6,1798.3,11.3408]
[1743406421679,8.56002,1798.6,1798.3,11.3406]
[1743406421878,3.0,1798.6,1798.4,5.56042]
[1743406422082,11.11879,1798.8,1798.4,5.56038]
[1743406422083,8.55962,1798.7,1798.4,5.56038]
[1743406422243,14.11927,1798.7,1798.3,11.34069]
[1743406422448,3.0,1798.4,1798.3,5.78]
[1743406422980,8.56049,1798.4,1798.3,5.78]
[1743406423177,3.0,1798.4,1798.3,5.78]
[1743406424677,3.0,1798.6,1798.3,11.3408]
[1743406424883,8.55998,1798.6,1798.3,11.3408]
[1743406425267,5.55935,1798.8,1798.5,5.56001]
[1743406425585,3.0,1798.7,1798.5,5.56001]
[1743406425750,3.0,1798.7,1798.4,5.56048]
[1743406425951,3.0,1798.7,1798.4,11.12082]
[1743406426151,3.0,1798.7,1798.4,5.56034]
[1743406426781,8.5597,1798.7,1798.4,5.56034]
[1743406427583,3.0,1798.7,1798.5,5.56002]
[1743406427777,3.0,1798.7,1798.5,11.12011]
[1743406428181,3.0,1798.7,1798.5,5.56002]
[1743406428690,6.04999,1798.9,1798.6,0.7916]
[1743406428878,5.55847,1799.1,1798.7,11.30837]
[1743406429198,3.0,1799.0,1798.8,5.55915]
[1743406429713,3.0,1799.1,1798.8,11.11827]
[1743406429896,3.0,1799.1,1798.7,11.30856]
[1743406430086,8.55918,1798.9,1798.8,5.751]
[1743406430282,14.11836,1798.9,1798.8,5.751]
[1743406431107,8.55918,1798.9,1798.8,5.751]
[1743406432099,3.0,1798.9,1798.8,5.751]
[1743406432302,8.55895,1798.9,1798.8,5.751]
[1743406433005,10.575722,1798.9,1798.8,5.751]
[1743406434609,11.370322,1798.9,1798.8,5.751]
[1743406435313,5.55984,1798.7,1798.4,0.7916]
[1743406435488,5.55997,1798.6,1798.5,5.723]
[1743406435684,3.0,1798.7,1798.4,6.35191]
[1743406435919,3.0,1798.7,1798.5,11.28214]
[1743406436211,8.5596,1798.7,1798.5,5.722]
[1743406436389,14.11935,1798.7,1798.5,5.722]
[1743406436708,8.5596,1798.7,1798.5,5.722]
[1743406437875,5.56031,1798.5,1798.2,6.35753]
[1743406438112,5.56031,1798.5,1798.3,5.712]
[1743406438280,3.90997411,1798.7,1798.3,5.712]
[1743406438281,0.85596,1798.7,1798.3,5.712]
[1743406438478,3.0,1798.5,1798.3,11.2728]
[1743406438687,3.0,1798.5,1798.3,11.27268]
[1743406439205,3.0,1798.5,1798.3,16.83337]
[1743406439410,3.0,1798.5,1798.3,11.27268]
[1743406439610,3.0,1798.5,1798.2,0.7966]
[1743406439814,8.56062,1798.4,1798.3,5.705]
[1743406439987,3.0,1798.4,1798.3,5.705]
[1743406440489,8.56049,1798.4,1798.3,5.705]
[1743406441318,9.3375,1798.3,1798.2,0.005]
[1743406441648,13.24756311,1798.3,1798.2,0.005]
[1743406441819,19.29755311,1798.3,1798.2,0.005]
[1743406442351,19.29755311,1798.3,1798.2,1e-05]
[1743406442510,19.29755311,1798.3,1797.7,5.7]
[1743406442511,8.5624,1797.8,1797.7,5.7]
[1743406442702,8.56235,1797.8,1797.7,5.699]
[1743406443727,5.56351,1797.5,1797.1,37.76049]
[1743406443928,3.0,1797.4,1797.2,12.03925]
[1743406444130,3.0,1797.4,1797.3,5.5639]
[1743406444450,3.0,1797.7,1797.5,0.7801]
[1743406444633,3.0,1797.7,1797.2,11.25911]
[1743406444634,5.56266,1797.7,1797.6,5.698]
[1743406444817,9.48011728,1797.7,1797.6,5.698]
[1743406445007,3.0,1797.7,1797.6,5.698]
[1743406445358,3.0,1797.7,1797.6,12.04107]
[1743406445635,15.22303277,1798.2,1797.8,5.56221]
[1743406445835,9.17304277,1798.2,1797.9,0.7801]
[1743406446025,6.416879,1798.3,1798.0,5.701]
[1743406446349,5.5605,1798.4,1798.1,20.84129]
[1743406446524,8.56083,1798.3,1798.1,15.2801]
[1743406447038,3.0,1798.3,1798.1,15.2801]
[1743406447411,11.61038,1798.5,1798.1,0.7801]
[1743406447616,3.0,1798.3,1798.1,0.7801]
[1743406447830,3.0,1798.3,1798.1,15.0301]
[1743406448031,3.0,1798.3,1798.1,0.5301]
[1743406448558,3.0,1798.3,1798.1,6.09151]
[1743406448713,3.0,1798.3,1798.1,6.09141]
[1743406449945,3.0,1798.3,1798.1,6.09135]
[1743406450639,3.0,1798.3,1798.1,0.5301]
[1743406450842,8.56083,1798.3,1798.1,0.5301]
[1743406451143,14.12184,1798.3,1798.2,5.688]
[1743406451311,3.0,1798.3,1798.2,5.688]
[1743406451646,3.0,1798.3,1798.2,6.4994]
[1743406452246,3.0,1798.5,1798.2,12.06051]
[1743406452553,3.0,1798.5,1798.3,5.5608]
[1743406452768,8.56019,1798.5,1798.2,12.06051]
[1743406452918,3.0,1798.5,1798.2,17.62146]
[1743406453251,3.0,1798.5,1798.2,12.06035]
[1743406453449,12.17220277,1798.5,1798.2,6.4994]
[1743406453651,5.56102,1798.3,1798.0,0.8198]
[1743406453953,8.56054,1798.4,1798.1,5.679]
[1743406454314,14.12122,1798.4,1798.1,5.679]
[1743406454515,5.56091,1798.3,1798.1,5.679]
[1743406454931,14.12123,1798.4,1798.1,5.679]
[1743406455246,5.56111,1798.2,1798.1,5.679]
[1743406455665,5.56095,1798.3,1798.1,5.679]
[1743406455855,8.55987,1798.6,1798.1,5.679]
[1743406456175,5.56098,1798.3,1798.1,5.679]
[1743406456340,11.12196,1798.3,1798.1,5.679]
[1743406456546,5.56098,1798.3,1798.1,5.679]
[1743406456869,11.12196,1798.3,1798.1,5.679]
[1743406457063,3.0,1798.3,1798.1,5.679]
[1743406457445,3.0,1798.3,1798.2,5.56111]
[1743406458245,3.0,1798.5,1798.4,0.8198]
[1743406458485,3.61191277,1798.8,1798.4,0.8198]
[1743406458784,8.866062,1798.9,1797.9,5.56182]
[1743406458785,3.7993,1798.5,1797.9,5.56182]
[1743406458993,5.56118,1798.2,1798.0,5.725]
[1743406459136,5.56087,1798.3,1798.1,5.733]
[1743406459581,5.56204,1797.9,1797.6,38.48071]
[1743406459776,5.56204,1797.9,1797.7,5.732]
[1743406459974,5.56235,1797.8,1797.7,5.732]
[1743406460283,12.17426277,1797.8,1797.7,5.733]
[1743406461286,12.97356277,1797.8,1797.7,5.733]
[1743406461575,14.82713605,1797.8,1797.7,5.733]
[1743406462183,12.17426277,1797.8,1797.7,5.733]
[1743406463744,5.56322,1797.6,1797.5,5.72]
[1743406463945,11.12546,1797.7,1797.5,5.72]
[1743406464144,5.56297,1797.6,1797.5,5.72]
[1743406465083,3.0,1797.7,1797.5,5.72]
[1743406465387,3.0,1797.7,1797.6,5.56297]
[1743406465557,3.0,1797.7,1797.5,11.28308]
[1743406466083,3.0,1797.7,1797.6,6.38277]
[1743406466293,8.61799966,1798.3,1797.9,5.56185]
[1743406466459,11.1225,1798.2,1798.0,5.718]
[1743406466666,3.0,1798.1,1798.0,5.718]
[1743406466964,8.56142,1798.1,1798.0,5.718]
[1743406467401,11.61848966,1798.1,1798.0,5.718]
[1743406467699,13.33646263,1798.1,1798.0,5.718]
[1743406468094,14.13576263,1798.1,1798.0,5.718]
[1743406469419,3.0,1797.6,1797.3,20.81786]
[1743406469638,8.56297,1797.6,1797.4,5.713]
[1743406469917,5.5639,1797.3,1797.2,5.725]
[1743406470435,5.56421,1797.2,1797.1,0.1]
[1743406470592,11.62127966,1797.2,1797.1,5.824]
[1743406471137,12.39147966,1797.2,1797.1,0.1]
[1743406471289,20.23700763,1797.2,1797.1,0.1]
[1743406471494,14.18701763,1797.2,1797.1,0.1]
[1743406471712,10.35974797,1797.2,1797.1,0.1]
[1743406473291,5.56606,1796.6,1796.5,0.005]
[1743406473613,13.37179126,1796.6,1796.5,0.005]
[1743406473812,19.42178126,1796.6,1796.5,0.005]
[1743406474028,20.19198126,1796.6,1796.5,0.005]
[1743406474396,5.5673,1796.2,1796.1,0.1]
[1743406474695,9.3406,1795.2,1795.1,0.1]
[1743406474892,9.3406,1795.2,1794.3,1.24633359]
[1743406474893,3.0,1795.1,1794.4,5.79]
[1743406475136,3.0,1794.9,1794.4,5.57271]
[1743406475290,3.0,1794.9,1794.5,5.821]
[1743406475627,0.7702,1794.8,1794.1,0.1]
[1743406475790,8.57277,1794.5,1794.1,0.1]
[1743406476125,3.0,1794.6,1794.1,0.05]
[1743406476289,6.04999,1794.7,1794.2,6.12]
[1743406476489,5.5716,1794.9,1794.3,5.57313]
[1743406476725,0.7702,1795.4,1794.3,5.5732]
[1743406476925,3.61551726,1795.2,1794.3,5.57295]